[Event "*** Titled Tuesday Blitz"]
[Site "Chess.com"]
[Date "2020.04.21"]
[Round "6"]
[White "Mizner"]
[Black "kasparicy"]
[Result "1-0"]
[WhiteElo "2507"]
[BlackElo "2333"]
[TimeControl "180+1"]
[EndTime "11:09:10 PDT"]
[Termination "Mizner won by resignation"]

1. e4 {[%clk 0:03:00.9]} 1... c5 {[%clk 0:02:59.2]} 2. Nf3 {[%clk 0:03:00.2]}
2... d6 {[%clk 0:02:59.7]} 3. d4 {[%clk 0:03:00.1]} 3... cxd4 {[%clk 0:03:00.6]}
4. Nxd4 {[%clk 0:03:00.9]} 4... Nf6 {[%clk 0:03:01.3]} 5. f3 {[%clk 0:03:01.4]}
5... a6 {[%clk 0:03:02]} 6. c4 {[%clk 0:03:00.7]} 6... e6 {[%clk 0:03:01.4]} 7.
Nc3 {[%clk 0:03:00.2]} 7... b6 {[%clk 0:03:02]} 8. Be3 {[%clk 0:02:59.5]} 8...
Bb7 {[%clk 0:03:02.7]} 9. Qd2 {[%clk 0:02:51.9]} 9... Nbd7 {[%clk 0:03:03.2]}
10. Rc1 {[%clk 0:02:46.4]} 10... Be7 {[%clk 0:03:03]} 11. Be2 {[%clk 0:02:45.8]}
11... O-O {[%clk 0:03:02.9]} 12. O-O {[%clk 0:02:46.2]} 12... Rc8 {[%clk
0:02:58]} 13. Rfd1 {[%clk 0:02:34.8]} 13... Qc7 {[%clk 0:02:57.4]} 14. a3 {[%clk
0:02:24.4]} 14... Qb8 {[%clk 0:02:55.6]} 15. b4 {[%clk 0:02:22.8]} 15... Rfd8
{[%clk 0:02:55.5]} 16. Kh1 {[%clk 0:02:20.6]} 16... Bf8 {[%clk 0:02:51.2]} 17.
Bf1 {[%clk 0:02:17.7]} 17... d5 {[%clk 0:02:46.1]} 18. cxd5 {[%clk 0:02:03.1]}
18... exd5 {[%clk 0:02:44.5]} 19. exd5 {[%clk 0:02:04]} 19... Nxd5 {[%clk
0:02:35]} 20. Nxd5 {[%clk 0:02:03]} 20... Rxc1 {[%clk 0:02:34.8]} 21. Rxc1
{[%clk 0:01:53]} 21... Bxd5 {[%clk 0:02:34.8]} 22. Bxa6 {[%clk 0:01:49.4]} 22...
Nf6 {[%clk 0:02:27.5]} 23. Bd3 {[%clk 0:01:34]} 23... Qa8 {[%clk 0:02:23.2]} 24.
Qb2 {[%clk 0:01:29.7]} 24... Bb7 {[%clk 0:02:13.7]} 25. Bf1 {[%clk 0:01:22.8]}
25... Nd5 {[%clk 0:02:03.5]} 26. Bf2 {[%clk 0:01:18.5]} 26... Be7 {[%clk
0:02:02.9]} 27. Nf5 {[%clk 0:01:14.6]} 27... Bf6 {[%clk 0:02:02.6]} 28. Bd4
{[%clk 0:01:13.8]} 28... Bxd4 {[%clk 0:01:59.6]} 29. Qxd4 {[%clk 0:01:13.1]}
29... Nf6 {[%clk 0:01:58.6]} 30. Qxb6 {[%clk 0:00:57.6]} 30... Re8 {[%clk
0:01:43.5]} 31. Nh6+ {[%clk 0:00:47.4]} 31... gxh6 {[%clk 0:01:35.2]} 32. Qxf6
{[%clk 0:00:46.6]} 32... Qxa3 {[%clk 0:01:34.4]} 33. Rc4 {[%clk 0:00:37.8]}
33... Bc8 {[%clk 0:01:12.1]} 34. Qxh6 {[%clk 0:00:30.7]} 34... Qa1 {[%clk
0:01:10.5]} 35. Qg5+ {[%clk 0:00:24.6]} 35... Kf8 {[%clk 0:01:04]} 36. Qc5+
{[%clk 0:00:19.6]} 36... Kg8 {[%clk 0:00:59.8]} 37. Rc1 {[%clk 0:00:20.2]} 37...
Qb2 {[%clk 0:00:40.8]} 38. b5 {[%clk 0:00:17.2]} 38... Be6 {[%clk 0:00:39.9]}
39. b6 {[%clk 0:00:14.7]} 39... Rb8 {[%clk 0:00:38.7]} 40. Qg5+ {[%clk
0:00:08.3]} 40... Kh8 {[%clk 0:00:35.7]} 41. Rd1 {[%clk 0:00:07.2]} 41... Qxb6
{[%clk 0:00:34]} 42. Qf6+ {[%clk 0:00:05.8]} 42... Kg8 {[%clk 0:00:33.6]} 43.
Bd3 {[%clk 0:00:06.2]} 43... Qb2 {[%clk 0:00:24.4]} 44. Qg5+ {[%clk 0:00:04.2]}
44... Qg7 {[%clk 0:00:24.3]} 45. Qxg7+ {[%clk 0:00:03.7]} 45... Kxg7 {[%clk
0:00:25.2]} 46. h3 {[%clk 0:00:03.9]} 46... h5 {[%clk 0:00:25]} 47. Kh2 {[%clk
0:00:04.4]} 47... Rd8 {[%clk 0:00:25]} 48. Be2 {[%clk 0:00:04]} 48... Kf6 {[%clk
0:00:23.5]} 49. Rxd8 {[%clk 0:00:03.3]} 1-0

[Event "*** Titled Tuesday Blitz"]
[Site "Chess.com"]
[Date "2020.04.21"]
[Round "6"]
[White "DoHoChess"]
[Black "Gordima"]
[Result "1/2-1/2"]
[WhiteElo "2560"]
[BlackElo "2727"]
[TimeControl "180+1"]
[EndTime "11:09:11 PDT"]
[Termination "Game drawn by repetition"]

1. Nf3 {[%clk 0:03:00.4]} 1... d5 {[%clk 0:02:55.6]} 2. d4 {[%clk 0:02:58.8]}
2... Nf6 {[%clk 0:02:55.3]} 3. c4 {[%clk 0:02:59.1]} 3... e6 {[%clk 0:02:55.6]}
4. g3 {[%clk 0:02:58.5]} 4... dxc4 {[%clk 0:02:55.4]} 5. Bg2 {[%clk 0:02:57.5]}
5... a6 {[%clk 0:02:55.9]} 6. O-O {[%clk 0:02:48.6]} 6... Nc6 {[%clk 0:02:55.1]}
7. Bg5 {[%clk 0:02:48.8]} 7... Be7 {[%clk 0:02:53.7]} 8. e3 {[%clk 0:02:42]}
8... O-O {[%clk 0:02:51.4]} 9. Qc1 {[%clk 0:02:32.1]} 9... e5 {[%clk 0:02:48.2]}
10. dxe5 {[%clk 0:02:12.3]} 10... Ng4 {[%clk 0:02:47.6]} 11. Bxe7 {[%clk
0:02:10.6]} 11... Qxe7 {[%clk 0:02:47.5]} 12. Qxc4 {[%clk 0:02:07]} 12... Ngxe5
{[%clk 0:02:46.5]} 13. Nxe5 {[%clk 0:02:07.2]} 13... Nxe5 {[%clk 0:02:46.2]} 14.
Qb3 {[%clk 0:01:53.2]} 14... c6 {[%clk 0:02:26.2]} 15. Nc3 {[%clk 0:01:48.2]}
15... Be6 {[%clk 0:02:26.2]} 16. Qc2 {[%clk 0:01:42.6]} 16... Rad8 {[%clk
0:02:22.7]} 17. Rfd1 {[%clk 0:01:40.7]} 17... h5 {[%clk 0:02:21.7]} 18. h4
{[%clk 0:01:34.5]} 18... Bg4 {[%clk 0:02:20.5]} 19. Rxd8 {[%clk 0:01:31.1]}
19... Rxd8 {[%clk 0:02:20.5]} 20. Ne4 {[%clk 0:01:29.7]} 20... f6 {[%clk
0:01:51.5]} 21. a3 {[%clk 0:01:26.4]} 21... Nf3+ {[%clk 0:01:40.5]} 22. Kh1
{[%clk 0:01:17]} 22... f5 {[%clk 0:01:27.5]} 23. Ng5 {[%clk 0:01:00.5]} 23...
Nxg5 {[%clk 0:00:45.6]} 24. hxg5 {[%clk 0:01:00.7]} 24... Qxg5 {[%clk
0:00:33.2]} 25. Qb3+ {[%clk 0:00:50.2]} 25... Kh7 {[%clk 0:00:29.3]} 26. Kg1
{[%clk 0:00:37.1]} 26... h4 {[%clk 0:00:26.5]} 27. gxh4 {[%clk 0:00:36.5]} 27...
Qxh4 {[%clk 0:00:24.4]} 28. Qb4 {[%clk 0:00:35.7]} 28... Qg5 {[%clk 0:00:22.2]}
29. Kf1 {[%clk 0:00:26.6]} 29... Rd7 {[%clk 0:00:14.2]} 30. Rc1 {[%clk
0:00:18.5]} 30... Bh5 {[%clk 0:00:13.3]} 31. a4 {[%clk 0:00:12.8]} 31... Qf6
{[%clk 0:00:11.2]} 32. a5 {[%clk 0:00:12.8]} 32... Re7 {[%clk 0:00:10.1]} 33.
Kg1 {[%clk 0:00:12.9]} 33... Qg5 {[%clk 0:00:08.4]} 34. Kf1 {[%clk 0:00:12.8]}
34... Re6 {[%clk 0:00:08.6]} 35. Qd2 {[%clk 0:00:09]} 35... Rg6 {[%clk
0:00:08.4]} 36. f4 {[%clk 0:00:09.1]} 36... Qh4 {[%clk 0:00:06.6]} 37. Rc3
{[%clk 0:00:05.3]} 37... Qh2 {[%clk 0:00:05]} 38. Qf2 {[%clk 0:00:05.2]} 38...
Rg3 {[%clk 0:00:02.9]} 39. e4 {[%clk 0:00:04.7]} 39... Rxc3 {[%clk 0:00:02.5]}
40. bxc3 {[%clk 0:00:05.6]} 40... g6 {[%clk 0:00:02.2]} 41. exf5 {[%clk
0:00:05.9]} 41... gxf5 {[%clk 0:00:02.9]} 42. c4 {[%clk 0:00:06.1]} 42... Kh6
{[%clk 0:00:02.9]} 43. Qe3 {[%clk 0:00:06.5]} 43... Bg4 {[%clk 0:00:03.1]} 44.
Qe6+ {[%clk 0:00:06.9]} 44... Kh5 {[%clk 0:00:03.5]} 45. Qf7+ {[%clk 0:00:07.1]}
45... Kh6 {[%clk 0:00:04.2]} 46. Qf6+ {[%clk 0:00:07.7]} 46... Kh7 {[%clk
0:00:04.7]} 47. Qf7+ {[%clk 0:00:08.2]} 47... Kh6 {[%clk 0:00:05.3]} 48. Qf6+
{[%clk 0:00:08.9]} 48... Kh7 {[%clk 0:00:06]} 49. Qf7+ {[%clk 0:00:09.4]} 49...
Kh6 {[%clk 0:00:06.6]} 1/2-1/2

[Event "*** Titled Tuesday Blitz"]
[Site "Chess.com"]
[Date "2020.04.21"]
[Round "6"]
[White "Arek_pacitan"]
[Black "saisree"]
[Result "1-0"]
[WhiteElo "2563"]
[BlackElo "2337"]
[TimeControl "180+1"]
[EndTime "11:09:12 PDT"]
[Termination "Arek_pacitan won by checkmate"]

1. e4 {[%clk 0:02:59]} 1... c6 {[%clk 0:03:00]} 2. d4 {[%clk 0:02:58.9]} 2... d5
{[%clk 0:03:00.6]} 3. exd5 {[%clk 0:02:58.8]} 3... cxd5 {[%clk 0:03:00.9]} 4.
Nf3 {[%clk 0:02:59.7]} 4... Nc6 {[%clk 0:03:00.8]} 5. Bd3 {[%clk 0:03:00.2]}
5... Bg4 {[%clk 0:03:00.9]} 6. c3 {[%clk 0:03:00]} 6... e6 {[%clk 0:02:59.7]} 7.
O-O {[%clk 0:03:00]} 7... Bd6 {[%clk 0:02:58.8]} 8. Nbd2 {[%clk 0:03:00.3]} 8...
Nf6 {[%clk 0:02:57.7]} 9. Re1 {[%clk 0:02:59.9]} 9... O-O {[%clk 0:02:57.6]} 10.
Qb3 {[%clk 0:02:59.4]} 10... Qc7 {[%clk 0:02:56.5]} 11. h3 {[%clk 0:02:58.6]}
11... Bh5 {[%clk 0:02:56.1]} 12. a4 {[%clk 0:02:50]} 12... a6 {[%clk 0:02:44.7]}
13. Qc2 {[%clk 0:02:46.7]} 13... Rac8 {[%clk 0:02:38.4]} 14. Qb1 {[%clk
0:02:46]} 14... Bg6 {[%clk 0:02:37.2]} 15. Nf1 {[%clk 0:02:45.2]} 15... Na5
{[%clk 0:02:30.3]} 16. Ne5 {[%clk 0:02:38.4]} 16... Nb3 {[%clk 0:02:07.8]} 17.
Nxg6 {[%clk 0:02:38]} 17... hxg6 {[%clk 0:02:06.8]} 18. Ra2 {[%clk 0:02:37.8]}
18... Qc6 {[%clk 0:01:47.6]} 19. Bg5 {[%clk 0:02:36]} 19... Nd7 {[%clk
0:01:44.1]} 20. Qd1 {[%clk 0:02:32.4]} 20... Na5 {[%clk 0:01:41.4]} 21. h4
{[%clk 0:02:31.2]} 21... Nf6 {[%clk 0:01:29.5]} 22. Bxf6 {[%clk 0:02:26.6]}
22... gxf6 {[%clk 0:01:29.8]} 23. h5 {[%clk 0:02:27.1]} 23... g5 {[%clk
0:01:29.9]} 24. Qg4 {[%clk 0:02:25.9]} 24... Kg7 {[%clk 0:01:13.3]} 25. h6+
{[%clk 0:02:23.3]} 25... Kh8 {[%clk 0:01:09.2]} 26. Qh5 {[%clk 0:02:17]} 26...
Qb6 {[%clk 0:01:00]} 27. Ne3 {[%clk 0:02:06.7]} 27... Qb3 {[%clk 0:00:57.5]} 28.
Bb1 {[%clk 0:02:06.3]} 28... Nc4 {[%clk 0:00:55.7]} 29. Ng4 {[%clk 0:02:06]}
29... Be7 {[%clk 0:00:55.7]} 30. h7 {[%clk 0:01:58.8]} 30... Nd2 {[%clk
0:00:54]} 31. Ra3 {[%clk 0:01:39.2]} 31... Qxb2 {[%clk 0:00:18.4]} 32. Ra2
{[%clk 0:01:38.9]} 32... Qxc3 {[%clk 0:00:18.8]} 33. Rd1 {[%clk 0:01:10]} 33...
Nxb1 {[%clk 0:00:13.4]} 34. Rxb1 {[%clk 0:01:10.9]} 34... Rc7 {[%clk 0:00:07.1]}
35. Nh6 {[%clk 0:01:03]} 35... Bd6 {[%clk 0:00:06.7]} 36. Rab2 {[%clk
0:01:00.7]} 36... Qc1+ {[%clk 0:00:05.9]} 37. Qd1 {[%clk 0:00:59.1]} 37... Qxd1+
{[%clk 0:00:03.7]} 38. Rxd1 {[%clk 0:01:00]} 38... Kg7 {[%clk 0:00:03.8]} 39.
Ng4 {[%clk 0:01:00.1]} 39... Kxh7 {[%clk 0:00:03.9]} 40. Nxf6+ {[%clk
0:01:00.1]} 40... Kg6 {[%clk 0:00:04.6]} 41. Ng4 {[%clk 0:01:01]} 41... Rfc8
{[%clk 0:00:02.8]} 42. g3 {[%clk 0:00:57.8]} 42... Rc1 {[%clk 0:00:02.9]} 43.
Rxc1 {[%clk 0:00:58.2]} 43... Rxc1+ {[%clk 0:00:03.5]} 44. Kg2 {[%clk
0:00:59.1]} 44... Rc7 {[%clk 0:00:04.1]} 45. Rb6 {[%clk 0:00:59]} 45... Be7
{[%clk 0:00:03.8]} 46. Ne5+ {[%clk 0:00:59.2]} 46... Kg7 {[%clk 0:00:04.3]} 47.
g4 {[%clk 0:00:58.3]} 47... Bf6 {[%clk 0:00:04.8]} 48. Nf3 {[%clk 0:00:58.2]}
48... Kf8 {[%clk 0:00:03.2]} 49. Rb3 {[%clk 0:00:57.4]} 49... Ke7 {[%clk
0:00:03.3]} 50. Rb2 {[%clk 0:00:56.6]} 50... Kd7 {[%clk 0:00:03.4]} 51. Rb3
{[%clk 0:00:56.2]} 51... Kc8 {[%clk 0:00:03.6]} 52. Rb1 {[%clk 0:00:55.5]} 52...
Rc4 {[%clk 0:00:04.2]} 53. Rh1 {[%clk 0:00:56]} 53... Rxa4 {[%clk 0:00:02.9]}
54. Rh7 {[%clk 0:00:56]} 54... Bxd4 {[%clk 0:00:02.5]} 55. Rxf7 {[%clk
0:00:56.6]} 55... b5 {[%clk 0:00:02.4]} 56. Nxg5 {[%clk 0:00:56.5]} 56... e5
{[%clk 0:00:02.4]} 57. Ne6 {[%clk 0:00:56.5]} 57... b4 {[%clk 0:00:02.2]} 58. g5
{[%clk 0:00:56.9]} 58... b3 {[%clk 0:00:02.1]} 59. g6 {[%clk 0:00:56.3]} 59...
b2 {[%clk 0:00:02.6]} 60. g7 {[%clk 0:00:56.5]} 60... b1=Q {[%clk 0:00:01.1]}
61. g8=Q# {[%clk 0:00:57.4]} 1-0

[Event "*** Titled Tuesday Blitz"]
[Site "Chess.com"]
[Date "2020.04.21"]
[Round "6"]
[White "Anaj14"]
[Black "MPGM"]
[Result "0-1"]
[WhiteElo "2315"]
[BlackElo "2542"]
[TimeControl "180+1"]
[EndTime "11:09:12 PDT"]
[Termination "MPGM won by resignation"]

1. Nf3 {[%clk 0:03:00.9]} 1... d5 {[%clk 0:02:54.2]} 2. g3 {[%clk 0:03:00]} 2...
Nd7 {[%clk 0:02:54.2]} 3. c4 {[%clk 0:02:59.2]} 3... dxc4 {[%clk 0:02:51.3]} 4.
Na3 {[%clk 0:02:51.5]} 4... Nb6 {[%clk 0:02:48.8]} 5. Qc2 {[%clk 0:02:48.4]}
5... Be6 {[%clk 0:02:47.8]} 6. Bg2 {[%clk 0:02:36.4]} 6... Nf6 {[%clk
0:02:44.3]} 7. O-O {[%clk 0:02:35.4]} 7... Bd5 {[%clk 0:02:41.3]} 8. Re1 {[%clk
0:02:19.3]} 8... e6 {[%clk 0:01:57.3]} 9. e4 {[%clk 0:02:15.8]} 9... Bc6 {[%clk
0:01:56.9]} 10. Nxc4 {[%clk 0:02:13.2]} 10... Nxc4 {[%clk 0:01:35.2]} 11. Qxc4
{[%clk 0:02:12.6]} 11... a6 {[%clk 0:01:24.7]} 12. e5 {[%clk 0:02:10.5]} 12...
Nd5 {[%clk 0:01:22.4]} 13. d4 {[%clk 0:02:10]} 13... Be7 {[%clk 0:01:19.7]} 14.
a3 {[%clk 0:02:09.4]} 14... O-O {[%clk 0:01:18.2]} 15. h4 {[%clk 0:02:06.7]}
15... Qd7 {[%clk 0:00:54.1]} 16. Bg5 {[%clk 0:02:05]} 16... h6 {[%clk
0:00:48.8]} 17. Bxe7 {[%clk 0:02:03.4]} 17... Nxe7 {[%clk 0:00:48.2]} 18. Rad1
{[%clk 0:02:00.7]} 18... Rfd8 {[%clk 0:00:45.9]} 19. b4 {[%clk 0:01:51.7]} 19...
Qd5 {[%clk 0:00:35]} 20. Qc5 {[%clk 0:01:44.5]} 20... Qxc5 {[%clk 0:00:32.6]}
21. dxc5 {[%clk 0:01:43.9]} 21... Kf8 {[%clk 0:00:19.2]} 22. Nd4 {[%clk
0:01:32.3]} 22... Bxg2 {[%clk 0:00:18.6]} 23. Kxg2 {[%clk 0:01:32.9]} 23... Rd5
{[%clk 0:00:17.2]} 24. Nc2 {[%clk 0:01:18]} 24... Rad8 {[%clk 0:00:15.6]} 25.
Rxd5 {[%clk 0:01:18.2]} 25... Rxd5 {[%clk 0:00:15.7]} 26. Re2 {[%clk 0:01:14.9]}
26... Ke8 {[%clk 0:00:14]} 27. f4 {[%clk 0:01:10]} 27... Rd3 {[%clk 0:00:14]}
28. Kf2 {[%clk 0:01:05.9]} 28... Nf5 {[%clk 0:00:14]} 29. Ne3 {[%clk 0:01:00.9]}
29... Nd4 {[%clk 0:00:12.1]} 30. Ra2 {[%clk 0:00:57.5]} 30... Rb3 {[%clk
0:00:08.8]} 31. h5 {[%clk 0:00:48.2]} 31... Nb5 {[%clk 0:00:08]} 32. a4 {[%clk
0:00:45.4]} 32... Nc3 {[%clk 0:00:08]} 33. Rc2 {[%clk 0:00:39.4]} 33... Nxa4
{[%clk 0:00:07.6]} 34. Rc4 {[%clk 0:00:33.5]} 34... Nb2 {[%clk 0:00:06.8]} 35.
Rd4 {[%clk 0:00:33.5]} 35... Rxb4 {[%clk 0:00:06.1]} 36. Rxb4 {[%clk 0:00:28.5]}
36... Nd3+ {[%clk 0:00:06.2]} 37. Kf3 {[%clk 0:00:29.4]} 37... Nxb4 {[%clk
0:00:07.1]} 38. Ke4 {[%clk 0:00:28.8]} 38... b6 {[%clk 0:00:04.7]} 39. cxb6
{[%clk 0:00:24.8]} 39... cxb6 {[%clk 0:00:05.6]} 40. Nc4 {[%clk 0:00:25.6]}
40... b5 {[%clk 0:00:06.1]} 41. Nd6+ {[%clk 0:00:26]} 41... Kf8 {[%clk 0:00:06]}
42. Kd4 {[%clk 0:00:26.5]} 42... Ke7 {[%clk 0:00:04.6]} 43. g4 {[%clk
0:00:23.6]} 43... Nc2+ {[%clk 0:00:03.8]} 44. Kc3 {[%clk 0:00:22.1]} 44... Ne3
{[%clk 0:00:03.9]} 45. g5 {[%clk 0:00:21.5]} 45... Nd5+ {[%clk 0:00:04.1]} 46.
Kd4 {[%clk 0:00:21.3]} 46... Nxf4 {[%clk 0:00:05]} 47. gxh6 {[%clk 0:00:22]}
47... gxh6 {[%clk 0:00:05.2]} 48. Nc8+ {[%clk 0:00:18.5]} 48... Kf8 {[%clk
0:00:05.4]} 49. Nd6 {[%clk 0:00:14.3]} 49... Nxh5 {[%clk 0:00:05.7]} 0-1

[Event "*** Titled Tuesday Blitz"]
[Site "Chess.com"]
[Date "2020.04.21"]
[Round "6"]
[White "Alliswell998"]
[Black "BvsN"]
[Result "1-0"]
[WhiteElo "2571"]
[BlackElo "2377"]
[TimeControl "180+1"]
[EndTime "11:09:13 PDT"]
[Termination "Alliswell998 won on time"]

1. d4 {[%clk 0:03:00.9]} 1... d5 {[%clk 0:02:59.7]} 2. Bg5 {[%clk 0:03:01.4]}
2... h6 {[%clk 0:02:59.1]} 3. Bh4 {[%clk 0:03:01.6]} 3... c6 {[%clk 0:02:59.2]}
4. Nc3 {[%clk 0:03:01.8]} 4... Qb6 {[%clk 0:02:58.5]} 5. Qd2 {[%clk 0:03:01.6]}
5... Bf5 {[%clk 0:02:58.4]} 6. O-O-O {[%clk 0:03:01.1]} 6... e6 {[%clk 0:02:58]}
7. f3 {[%clk 0:03:01.5]} 7... Bb4 {[%clk 0:02:56.1]} 8. a3 {[%clk 0:02:59.6]}
8... Be7 {[%clk 0:02:54.9]} 9. Bxe7 {[%clk 0:02:53.6]} 9... Nxe7 {[%clk
0:02:55.1]} 10. e4 {[%clk 0:02:54.3]} 10... Bg6 {[%clk 0:02:54.4]} 11. Nge2
{[%clk 0:02:51.4]} 11... Nd7 {[%clk 0:02:54.2]} 12. Nf4 {[%clk 0:02:50.1]} 12...
O-O {[%clk 0:02:52.4]} 13. h4 {[%clk 0:02:47.6]} 13... Bh7 {[%clk 0:02:52.1]}
14. g4 {[%clk 0:02:47]} 14... dxe4 {[%clk 0:02:47.9]} 15. fxe4 {[%clk 0:02:45]}
15... e5 {[%clk 0:02:48.3]} 16. dxe5 {[%clk 0:02:32]} 16... Nxe5 {[%clk
0:02:45.9]} 17. Qd6 {[%clk 0:02:32.6]} 17... N7g6 {[%clk 0:02:32.7]} 18. Nxg6
{[%clk 0:02:30]} 18... Nxg6 {[%clk 0:02:31.6]} 19. Bc4 {[%clk 0:02:22.6]} 19...
Rad8 {[%clk 0:02:26.2]} 20. Qg3 {[%clk 0:02:20.4]} 20... Qc5 {[%clk 0:02:20.3]}
21. Bb3 {[%clk 0:02:17.9]} 21... Ne5 {[%clk 0:02:18]} 22. g5 {[%clk 0:02:08.3]}
22... h5 {[%clk 0:02:16.7]} 23. Rhf1 {[%clk 0:02:06.8]} 23... Bg6 {[%clk
0:02:14.7]} 24. Kb1 {[%clk 0:02:02.6]} 24... b5 {[%clk 0:02:05.6]} 25. Qf4
{[%clk 0:01:45.2]} 25... a5 {[%clk 0:02:01.7]} 26. Ba2 {[%clk 0:01:31.8]} 26...
b4 {[%clk 0:01:59.7]} 27. axb4 {[%clk 0:01:29.1]} 27... axb4 {[%clk 0:01:59.9]}
28. Na4 {[%clk 0:01:28.3]} 28... Qa5 {[%clk 0:01:54.4]} 29. Bb3 {[%clk
0:01:26.7]} 29... Qb5 {[%clk 0:01:30]} 30. Qe3 {[%clk 0:00:53.1]} 30... Ra8
{[%clk 0:01:20]} 31. Nb6 {[%clk 0:00:45.4]} 31... Ra6 {[%clk 0:01:00.6]} 32. Nd7
{[%clk 0:00:24.1]} 32... Rfa8 {[%clk 0:00:51.8]} 33. c4 {[%clk 0:00:20.1]} 33...
bxc3 {[%clk 0:00:40.5]} 34. Qxc3 {[%clk 0:00:20.5]} 34... Bxe4+ {[%clk
0:00:29.7]} 35. Kc1 {[%clk 0:00:18.7]} 35... Ra1+ {[%clk 0:00:17.3]} 36. Kd2
{[%clk 0:00:19.3]} 36... Rxd1+ {[%clk 0:00:13.3]} 37. Rxd1 {[%clk 0:00:19.7]}
37... Nxd7 {[%clk 0:00:10.6]} 38. g6 {[%clk 0:00:13.7]} 38... Bd5 {[%clk
0:00:07.4]} 39. gxf7+ {[%clk 0:00:13.3]} 39... Bxf7 {[%clk 0:00:07]} 40. Rg1
{[%clk 0:00:13.2]} 40... Ne5 {[%clk 0:00:03.9]} 41. Bxf7+ {[%clk 0:00:11.6]}
41... Kxf7 {[%clk 0:00:03.5]} 42. Rg2 {[%clk 0:00:10.3]} 42... Rd8+ {[%clk
0:00:02.3]} 43. Kc1 {[%clk 0:00:06.6]} 43... Qd5 {[%clk 0:00:02.8]} 44. Rf2+
{[%clk 0:00:06.4]} 44... Kg8 {[%clk 0:00:02.4]} 45. Rf1 {[%clk 0:00:05.9]} 45...
Qd3 {[%clk 0:00:01.7]} 46. Qe1 {[%clk 0:00:03.6]} 1-0

[Event "*** Titled Tuesday Blitz"]
[Site "Chess.com"]
[Date "2020.04.21"]
[Round "6"]
[White "Rsnr"]
[Black "Semen_Khanin"]
[Result "0-1"]
[WhiteElo "2769"]
[BlackElo "2647"]
[TimeControl "180+1"]
[EndTime "11:09:14 PDT"]
[Termination "Semen_Khanin won on time"]

1. d4 {[%clk 0:03:00.9]} 1... Nf6 {[%clk 0:03:00.1]} 2. c4 {[%clk 0:03:01.5]}
2... g6 {[%clk 0:02:58.7]} 3. g3 {[%clk 0:03:01.7]} 3... c6 {[%clk 0:02:57.1]}
4. Bg2 {[%clk 0:03:02.3]} 4... d5 {[%clk 0:02:57.3]} 5. e3 {[%clk 0:03:03]} 5...
Bg7 {[%clk 0:02:57.3]} 6. Ne2 {[%clk 0:03:03.8]} 6... O-O {[%clk 0:02:56.3]} 7.
O-O {[%clk 0:03:04.5]} 7... dxc4 {[%clk 0:02:53.5]} 8. Na3 {[%clk 0:03:04.8]}
8... e5 {[%clk 0:02:45.8]} 9. dxe5 {[%clk 0:03:00.9]} 9... Qxd1 {[%clk 0:02:45]}
10. Rxd1 {[%clk 0:03:01.8]} 10... Nfd7 {[%clk 0:02:09.3]} 11. f4 {[%clk
0:02:58.6]} 11... Nb6 {[%clk 0:02:08.7]} 12. Bd2 {[%clk 0:02:40.6]} 12... Bg4
{[%clk 0:02:07.8]} 13. Kf2 {[%clk 0:02:41]} 13... N8d7 {[%clk 0:01:59.9]} 14.
Rac1 {[%clk 0:02:39.1]} 14... f6 {[%clk 0:01:54.5]} 15. Nxc4 {[%clk 0:02:20.5]}
15... Nxc4 {[%clk 0:01:51.8]} 16. Rxc4 {[%clk 0:02:21.4]} 16... fxe5 {[%clk
0:01:52.1]} 17. Bb4 {[%clk 0:02:15.3]} 17... Rf7 {[%clk 0:01:52]} 18. Rc2 {[%clk
0:01:54.8]} 18... Re8 {[%clk 0:01:50]} 19. Rdd2 {[%clk 0:01:31.2]} 19... g5
{[%clk 0:01:44.1]} 20. h3 {[%clk 0:00:57.1]} 20... exf4 {[%clk 0:01:31.1]} 21.
exf4 {[%clk 0:00:54.4]} 21... Bf5 {[%clk 0:01:04.9]} 22. Rc1 {[%clk 0:00:51.2]}
22... gxf4 {[%clk 0:01:01.6]} 23. Nxf4 {[%clk 0:00:52.1]} 23... Ne5 {[%clk
0:00:49.3]} 24. b3 {[%clk 0:00:31.4]} 24... Nd3+ {[%clk 0:00:45.7]} 25. Nxd3
{[%clk 0:00:27.7]} 25... Bxd3+ {[%clk 0:00:45.7]} 26. Kg1 {[%clk 0:00:27.1]}
26... Bh6 {[%clk 0:00:44.7]} 27. Rxd3 {[%clk 0:00:20.1]} 27... Bxc1 {[%clk
0:00:44.8]} 28. Bc3 {[%clk 0:00:20]} 28... Re3 {[%clk 0:00:43.9]} 29. Rd8+
{[%clk 0:00:20]} 29... Rf8 {[%clk 0:00:43.3]} 30. Rxf8+ {[%clk 0:00:15.2]} 30...
Kxf8 {[%clk 0:00:43.4]} 31. Bb4+ {[%clk 0:00:15.9]} 31... Kf7 {[%clk 0:00:42.8]}
32. Kf2 {[%clk 0:00:16.2]} 32... Rd3 {[%clk 0:00:38.8]} 33. Bf1 {[%clk
0:00:09.9]} 33... Rd7 {[%clk 0:00:27.4]} 34. Bc4+ {[%clk 0:00:10.1]} 34... Kg6
{[%clk 0:00:26.8]} 35. Kf3 {[%clk 0:00:06.2]} 35... Bb2 {[%clk 0:00:24.3]} 36.
a4 {[%clk 0:00:04.1]} 36... Bf6 {[%clk 0:00:22]} 37. a5 {[%clk 0:00:04.3]} 37...
b6 {[%clk 0:00:19.7]} 38. a6 {[%clk 0:00:04.4]} 38... b5 {[%clk 0:00:19.8]} 39.
Be2 {[%clk 0:00:04.2]} 39... Bd4 {[%clk 0:00:17.6]} 40. Ke4 {[%clk 0:00:03.8]}
40... Bb6 {[%clk 0:00:17.2]} 41. Bd3 {[%clk 0:00:02.9]} 41... Rd4+ {[%clk
0:00:16.2]} 42. Ke3+ {[%clk 0:00:02.1]} 42... Kf7 {[%clk 0:00:16.4]} 0-1